[Event "11th Mumbai Mayors Cup 2018"]
[Site "Mumbai"]
[Date "2018.06.08"]
[Round "8"]
[White "Karthikeyan Pandiyan"]
[Black "Manigandan, S S"]
[Result "1/2-1/2"]
[ECO "C18"]
[WhiteElo "1425"]
[BlackElo "2216"]
[Annotator "NA"]
[PlyCount "91"]
[EventDate "2018.??.??"]
[EventType "swiss"]
[EventCountry "IND"]
[SourceTitle "playchess.com"]
[Source "ChessBase"]
[SourceQuality "1"]
[TimeControl "5400+30"]

1. e4 {[%emt 0:00:00]} e6 {[%emt 0:00:17]} 2. d4 {[%emt 0:00:00]} d5 {[%emt 0:00:06]} 3. Nc3 {[%emt 0:00:03]} Bb4 {[%emt 0:00:11]} 4. e5 {[%emt 0:00:35]} c5 {[%emt 0:00:06]} 5. a3 {[%emt 0:00:17]} Bxc3+ {[%emt 0:00:12]} 6. bxc3 {[%emt 0:00:06]} Ne7 {[%emt 0:00:07]} 7. Qg4 {[%emt 0:00:15]} Qc7 {[%emt 0:00:25]} 8. Bd3 {[%emt 0:01:31]} cxd4 {[%emt 0:01:53]} 9. Ne2 {[%emt 0:01:03]} dxc3 {[%emt 0:00:59]} 10. Qxg7 {[%emt 0:01:06]} Rg8 {[%emt 0:00:05]} 11. Qxh7 {[%emt 0:00:12]} Qxe5 {[%emt 0:00:15] C18: French: 3 Nc3 Bb4: Main line: 7 h4 and 7 Qg4} 12. h4 {[%emt 0:02:02]} (12. Bf4 Qf6 13. h4 Rxg2 14. Kf1 Rg8 15. Rg1 Rh8 16. Bg5 Rxh7 17. Bxf6 Rh6 18. Bg5 Rh8 19. Bf6 Rh6 20. Bg5 Rh8 21. Bf6 {½-½ (21) Leko,P (2728)-Shirov,A (2713) Saratov 2011}) 12... Nd7 {[%emt 0:14:35]} 13. Bf4 {[%emt 0:08:11]} Qf6 {[%emt 0:00:11]} 14. Bg5 {[%emt 0:00:52]} Qh8 {[%emt 0:00:05]} 15. Qxh8 {[%emt 0:02:18]} Rxh8 {[%emt 0:00:04]} 16. Nxc3 {[%emt 0:00:46]} a6 {[%emt 0:00:09]} 17. g4 $146 {[%emt 0:03:48]} ({Predecessor:} 17. O-O-O f6 18. Be3 b5 19. f4 {½-½ (42) Collins,S (2490)-Pert,N (2562) England 2015}) 17... f6 {[%emt 0:02:40]} 18. Bd2 {[%emt 0:04:15]} Nc5 {[%emt 0:05:58]} 19. Be2 {[%emt 0:05:58]} d4 {[%emt 0:14:58]} 20. Nd1 {[%emt 0:00:10]} Bd7 {[%emt 0:02:51]} 21. f3 {[%emt 0:05:23]} Ba4 {[%emt 0:20:26]} 22. Rc1 {[%emt 0:01:38]} Rc8 23. Nb2 Nd5 24. Nxa4 {[%emt 0:05:14]} Nxa4 {[%emt 0:07:01]} 25. Bd3 {[%emt 0:00:35]} Nc5 {[%emt 0:05:57]} 26. Bc4 {[%emt 0:04:30]} Nc3 {[%emt 0:03:59]} 27. h5 {[%emt 0:07:38]} b5 {[%emt 0:02:19]} 28. Bd3 {[%emt 0:00:40]} Nxd3+ {[%emt 0:02:24]} 29. cxd3 {[%emt 0:01:31]} a5 {[%emt 0:02:28]} 30. Rc2 {[%emt 0:05:00]} e5 {[%emt 0:06:49]} 31. f4 {[%emt 0:07:37]} exf4 {[%emt 0:01:02]} 32. Rf1 {[%emt 0:01:55]} Ke7 {[%emt 0:07:26]} 33. Rxf4 {[%emt 0:00:00]} Rhd8 {[%emt 0:00:03]} 34. Rf5 {[%emt 0:11:41]} Ke6 {[%emt 0:00:02]} 35. h6 {[%emt 0:01:17]} Rd5 {[%emt 0:01:16]} 36. Rf3 {[%emt 0:07:57]} Rd7 {[%emt 0:00:39]} 37. Rb2 {[%emt 0:00:53]} Rd5 {[%emt 0:00:31]} 38. Rb3 {[%emt 0:01:11]} Rdc5 {[%emt 0:00:18]} 39. Rf4 {[%emt 0:00:35]} Rd5 {[%emt 0:00:37]} 40. Kf1 {[%emt 0:02:41]} Kf7 {[%emt 0:00:29]} 41. g5 {[%emt 0:02:38]} Rxg5 {[%emt 0:00:02]} 42. Rxd4 {[%emt 0:00:23]} Rf5+ {[%emt 0:00:01]} 43. Rf4 {[%emt 0:00:12]} Rxf4+ {[%emt 0:00:14]} 44. Bxf4 {[%emt 0:00:01]} Nd5 $11 {[%emt 0:00:57]} 45. Bd2 {[%emt 0:00:16]} b4 {[%emt 0:00:46]} 46. axb4 {[%emt 0:00:24]} 1/2-1/2

[Event "11th Mumbai Mayors Cup 2018"]
[Site "Mumbai"]
[Date "2018.06.09"]
[Round "9"]
[White "Sammed Jaykumar, Shete"]
[Black "Aaryan Varshney"]
[Result "0-1"]
[ECO "B90"]
[WhiteElo "2375"]
[BlackElo "2209"]
[Annotator "ChessBase"]
[PlyCount "98"]
[EventDate "2018.??.??"]
[EventType "swiss"]
[EventCountry "IND"]
[SourceTitle "playchess.com"]
[Source "ChessBase"]
[SourceQuality "1"]
[TimeControl "5400+30"]

1. e4 {[%emt 0:00:00]} c5 {[%emt 0:00:03]} 2. Nf3 {[%emt 0:00:00]} d6 {[%emt 0:00:03]} 3. d4 {[%emt 0:00:00]} cxd4 {[%emt 0:00:03]} 4. Nxd4 {[%emt 0:00:00]} Nf6 {[%emt 0:00:05]} 5. Nc3 {[%emt 0:00:00]} a6 {[%emt 0:00:02]} 6. h3 {[%emt 0:00:00]} e5 {[%emt 0:00:05]} 7. Nde2 {[%emt 0:00:01]} Be7 {[%emt 0:00:06]} 8. g4 {[%emt 0:00:05]} O-O {[%emt 0:00:05]} 9. Bg2 {[%emt 0:00:26]} Be6 {[%emt 0:00:20]} 10. O-O {[%emt 0:03:03]} Nbd7 {[%emt 0:00:05]} 11. Nd5 {[%emt 0:04:49]} Bxd5 {[%emt 0:01:16]} 12. exd5 {[%emt 0:00:05]} Rc8 {[%emt 0:02:22]} 13. a4 {[%emt 0:02:28]} Ne8 {[%emt 0:07:35]} 14. Kh1 {[%emt 0:07:12]} Bg5 {[%emt 0:02:56]} 15. f4 {[%emt 0:02:53]} exf4 {[%emt 0:04:24]} 16. Nxf4 {[%emt 0:00:10]} h6 {[%emt 0:04:01]} 17. Be3 {[%emt 0:04:25]} Nef6 {[%emt 0:00:55]} 18. a5 {[%emt 0:12:53]} Re8 {[%emt 0:05:12]} 19. Bd4 {[%emt 0:02:34]} Qc7 {[%emt 0:04:44]} 20. c3 {[%emt 0:02:01]} Nc5 {[%emt 0:03:18]} 21. Kh2 {[%emt 0:07:39]} Re7 {[%emt 0:06:44]} 22. Ne2 {[%emt 0:07:12]} Nce4 {[%emt 0:07:47]} 23. Ng3 {[%emt 0:09:43]} Nxg3 {[%emt 0:01:54]} 24. Kxg3 {[%emt 0:00:08]} Ne4+ {[%emt 0:03:21]} 25. Kh2 {[%emt 0:00:45]} Rce8 {[%emt 0:00:40]} 26. Rf5 {[%emt 0:02:56]} Bf6 {[%emt 0:04:57]} 27. Bb6 {[%emt 0:08:24]} Qc8 {[%emt 0:03:26]} 28. Bxe4 {[%emt 0:12:55]} Rxe4 {[%emt 0:00:11]} 29. Qd3 {[%emt 0:00:13]} Bh4 {[%emt 0:14:29]} 30. Raf1 {[%emt 0:00:46]} Re2+ {[%emt 0:00:29]} 31. Kh1 {[%emt 0:00:06]} f6 {[%emt 0:01:46]} 32. b4 {[%emt 0:02:12]} R8e7 {[%emt 0:08:53]} 33. Bg1 {[%emt 0:02:52]} Qe8 {[%emt 0:01:45]} 34. R5f3 {[%emt 0:00:36]} R7e4 {[%emt 0:00:26]} 35. c4 {[%emt 0:02:42]} Bg5 {[%emt 0:06:09]} 36. c5 {[%emt 0:01:17]} Rd2 {[%emt 0:00:38]} 37. Qc3 {[%emt 0:01:03]} Rxd5 {[%emt 0:02:11]} 38. Qb3 {[%emt 0:00:21]} Qe6 {[%emt 0:00:19]} 39. Rf5 {[%emt 0:00:58]} Rd2 {[%emt 0:00:54]} 40. Qg3 {[%emt 0:02:22]} Be3 {[%emt 0:01:56]} 41. Bh2 {[%emt 0:00:39]} dxc5 {[%emt 0:01:03]} 42. Qb8+ {[%emt 0:00:17]} Kh7 {[%emt 0:00:39]} 43. b5 {[%emt 0:00:23]} Bd4 {[%emt 0:00:44]} 44. Qxb7 {[%emt 0:00:35]} Ree2 {[%emt 0:01:25]} 45. Bf4 {[%emt 0:00:35]} Rb2 {[%emt 0:01:59]} 46. b6 {[%emt 0:01:10]} Qa2 {[%emt 0:00:31]} 47. Qc7 {[%emt 0:00:24]} Be5 {[%emt 0:00:31]} 48. Bxe5 {[%emt 0:01:07]} Qd5+ {[%emt 0:00:22]} 49. R5f3 {[%emt 0:00:10]} Qxf3+ {[%emt 0:00:08]} 0-1

[Event "11th Mumbai Mayors Cup 2018"]
[Site "Mumbai"]
[Date "2018.06.09"]
[Round "9"]
[White "Siva Mahadevan"]
[Black "Samant Aditya S"]
[Result "0-1"]
[ECO "B67"]
[WhiteElo "2346"]
[BlackElo "2121"]
[Annotator "ChessBase"]
[PlyCount "102"]
[EventDate "2018.??.??"]
[EventType "swiss"]
[EventCountry "IND"]
[SourceTitle "playchess.com"]
[Source "ChessBase"]
[SourceQuality "1"]
[TimeControl "5400+30"]

1. e4 {[%emt 0:11:56]} c5 {[%emt 0:00:08]} 2. Nf3 {[%emt 0:00:07]} d6 {[%emt 0:00:07]} 3. d4 {[%emt 0:00:07]} cxd4 {[%emt 0:00:05]} 4. Nxd4 {[%emt 0:00:09]} Nf6 {[%emt 0:00:05]} 5. Nc3 {[%emt 0:00:06]} Nc6 {[%emt 0:00:37]} 6. Bg5 {[%emt 0:00:45]} e6 {[%emt 0:00:12]} 7. Qd2 {[%emt 0:00:07]} a6 {[%emt 0:00:16]} 8. O-O-O {[%emt 0:00:13]} Bd7 {[%emt 0:00:09]} 9. f3 {[%emt 0:00:10]} Be7 {[%emt 0:00:14]} 10. Be3 {[%emt 0:00:17]} O-O {[%emt 0:03:00]} 11. g4 {[%emt 0:01:10]} Nxd4 {[%emt 0:00:43]} 12. Qxd4 {[%emt 0:01:50]} Bc6 {[%emt 0:05:57]} 13. g5 {[%emt 0:04:40]} Nd7 {[%emt 0:07:54]} 14. h4 {[%emt 0:00:39]} b5 {[%emt 0:02:14]} 15. Kb1 {[%emt 0:14:05]} b4 {[%emt 0:02:40]} 16. Ne2 {[%emt 0:02:55]} d5 {[%emt 0:05:23]} 17. Bg2 {[%emt 0:22:49]} e5 {[%emt 0:10:15]} 18. Qd2 {[%emt 0:00:20]} dxe4 {[%emt 0:05:38]} 19. fxe4 {[%emt 0:00:49]} Qc7 {[%emt 0:02:12]} 20. Ng3 {[%emt 0:03:13]} Nc5 {[%emt 0:09:02]} 21. h5 {[%emt 0:18:35]} Rad8 {[%emt 0:10:16]} 22. Qf2 {[%emt 0:00:59]} Ne6 {[%emt 0:13:07]} 23. Nf5 {[%emt 0:02:45]} Rxd1+ {[%emt 0:01:22]} 24. Rxd1 {[%emt 0:00:01]} Bxg5 {[%emt 0:01:00]} 25. Bxg5 {[%emt 0:00:30]} Nxg5 {[%emt 0:00:12]} 26. Qc5 {[%emt 0:00:28]} Rd8 {[%emt 0:05:23]} 27. Rd5 {[%emt 0:00:40]} Rd7 {[%emt 0:02:00]} 28. Rxd7 {[%emt 0:06:16]} Qxd7 {[%emt 0:00:05]} 29. Kc1 {[%emt 0:00:42]} Bxe4 {[%emt 0:06:53]} 30. Ne7+ {[%emt 0:00:14]} Kh8 {[%emt 0:00:05]} 31. Qxe5 {[%emt 0:00:12]} Ne6 {[%emt 0:01:59]} 32. Bh3 {[%emt 0:07:33]} Qxe7 {[%emt 0:01:10]} 33. Bxe6 {[%emt 0:00:21]} Bc6 {[%emt 0:01:21]} 34. Qb8+ {[%emt 0:00:41]} Qe8 {[%emt 0:02:33]} 35. Qxe8+ {[%emt 0:00:07]} Bxe8 {[%emt 0:00:04]} 36. Bc4 {[%emt 0:00:14]} a5 {[%emt 0:00:05]} 37. Kd2 {[%emt 0:00:03]} f5 {[%emt 0:00:50]} 38. Be2 {[%emt 0:00:14]} Kg8 {[%emt 0:00:53]} 39. c4 {[%emt 0:00:53]} bxc3+ {[%emt 0:00:50]} 40. bxc3 {[%emt 0:00:47]} Kf7 {[%emt 0:01:19]} 41. Ke3 {[%emt 0:00:13]} Ke6 {[%emt 0:00:47]} 42. Kd4 {[%emt 0:00:13]} g5 {[%emt 0:00:36]} 43. hxg6 {[%emt 0:00:19]} hxg6 {[%emt 0:00:05]} 44. c4 {[%emt 0:00:08]} Bc6 {[%emt 0:01:08]} 45. c5 {[%emt 0:01:43]} f4 {[%emt 0:01:08]} 46. Bc4+ {[%emt 0:01:05]} Kd7 {[%emt 0:00:30]} 47. Ke5 {[%emt 0:00:29]} f3 {[%emt 0:00:06]} 48. Kf6 {[%emt 0:00:29]} f2 {[%emt 0:00:50]} 49. Bf1 {[%emt 0:00:33]} a4 {[%emt 0:00:53]} 50. Kxg6 {[%emt 0:00:30]} a3 {[%emt 0:00:06]} 51. Bc4 {[%emt 0:00:24]} Bd5 {[%emt 0:00:26]} 0-1

[Event "11th Mumbai Mayors Cup 2018"]
[Site "Mumbai"]
[Date "2018.06.10"]
[Round "10"]
[White "Nitish Belurkar"]
[Black "Divya, Deshmukh"]
[Result "1-0"]
[ECO "B27"]
[WhiteElo "2309"]
[BlackElo "2138"]
[Annotator "NA RC"]
[PlyCount "55"]
[EventDate "2018.??.??"]
[EventType "swiss"]
[EventCountry "IND"]
[SourceTitle "playchess.com"]
[Source "ChessBase"]
[SourceQuality "1"]
[TimeControl "5400+30"]

1. e4 {[%emt 0:00:00]} c5 {[%emt 0:00:04]} 2. Nf3 {[%emt 0:00:00]} g6 {[%emt 0:00:04]} 3. c3 {[%emt 0:00:00]} Bg7 {[%emt 0:00:04]} 4. d4 {[%emt 0:00:05]} cxd4 {[%emt 0:00:03]} 5. Bc4 {[%emt 0:00:09]} d3 {[%emt 0:00:17]} 6. Qb3 {[%emt 0:00:16] B27: Sicilian: 2 Nf3, unusual Black 2nd moves} e6 {[%emt 0:00:44]} 7. Bg5 {[%emt 0:00:17]} Qc7 $146 {[%emt 0:00:26]} ({Predecessor:} 7... Qa5 8. Bxd3 Nc6 9. Nbd2 h6 10. Bh4 Nge7 11. Nc4 Qc5 12. Bg3 O-O 13. Bd6 Qh5 {1-0 (59) Ibarra Jerez,J (2522)-Rodriguez Guerrero,E (2432) Granada 2014}) 8. Bxd3 {[%emt 0:00:23]} Nc6 {[%emt 0:01:23]} 9. Nbd2 {[%emt 0:01:34]} Nge7 {[%emt 0:03:54]} 10. O-O {[%emt 0:05:52]} O-O {[%emt 0:03:27]} 11. Rfe1 {[%emt 0:03:24]} Re8 {[%emt 0:00:52]} 12. Rad1 {[%emt 0:02:24]} b6 {[%emt 0:03:09]} 13. Nc4 {[%emt 0:09:19]} d5 {[%emt 0:04:14]} 14. Ne3 {[%emt 0:04:07]} Bb7 {[%emt 0:03:53]} 15. Ng4 {[%emt 0:10:33]} Na5 {[%emt 0:08:58]} 16. Qa4 {[%emt 0:06:23]} dxe4 {[%emt 0:10:44]} 17. Bxe4 {[%emt 0:00:13]} b5 {[%emt 0:00:05]} 18. Qxb5 {[%emt 0:13:47]} Bxe4 {[%emt 0:05:16]} 19. Rxe4 {[%emt 0:00:06]} Rab8 {[%emt 0:00:03]} 20. Qa6 {[%emt 0:02:00]} Rxb2 {[%emt 0:08:51] [#]} 21. Rxe6 $16 {[%emt 0:02:59]} fxe6 {[%emt 0:24:14]} 22. Qxe6+ {[%emt 0:00:06]} Kh8 {[%emt 0:00:04]} 23. Nfe5 {[%emt 0:03:23]} Rf8 {[%emt 0:11:28]} 24. Bxe7 {[%emt 0:00:44]} Rb6 {[%emt 0:00:05]} 25. Nf7+ {[%emt 0:00:07]} Rxf7 {[%emt 0:00:04]} 26. Qxf7 {[%emt 0:00:06]} Qd7 {[%emt 0:00:07]} 27. Ne3 {[%emt 0:00:09]} Qc8 {[%emt 0:02:13]} 28. Rd8+ 1-0

[Event "11th Mumbai Mayors Cup 2018"]
[Site "Mumbai"]
[Date "2018.06.10"]
[Round "10"]
[White "Rathanvel, V S"]
[Black "Mahindrakar Indrajeet"]
[Result "1-0"]
[ECO "B03"]
[WhiteElo "2301"]
[BlackElo "2100"]
[Annotator "RC"]
[PlyCount "65"]
[EventDate "2018.??.??"]
[EventType "swiss"]
[EventCountry "IND"]
[SourceTitle "playchess.com"]
[Source "ChessBase"]
[SourceQuality "1"]
[TimeControl "5400+30"]

1. e4 {[%emt 0:00:00]} Nf6 {[%emt 0:01:02]} 2. e5 {[%emt 0:00:00]} Nd5 {[%emt 0:00:10]} 3. d4 {[%emt 0:00:00]} d6 {[%emt 0:00:07]} 4. c4 {[%emt 0:01:04]} Nb6 {[%emt 0:00:09]} 5. f4 {[%emt 0:00:04]} dxe5 {[%emt 0:00:16]} 6. fxe5 {[%emt 0:00:02]} c5 {[%emt 0:00:04]} 7. d5 {[%emt 0:01:11]} g6 {[%emt 0:00:10]} 8. Nf3 {[%emt 0:08:01]} Bg7 {[%emt 0:02:06]} 9. Bf4 {[%emt 0:02:25]} O-O {[%emt 0:01:50]} 10. Nc3 {[%emt 0:04:52]} e6 {[%emt 0:07:16]} 11. h3 {[%emt 0:30:16]} f6 {[%emt 0:14:14]} 12. Qd2 {[%emt 0:17:53]} exd5 {[%emt 0:31:28]} 13. cxd5 {[%emt 0:00:26]} fxe5 {[%emt 0:00:48]} 14. Bg5 {[%emt 0:00:20]} Qe8 {[%emt 0:03:02]} 15. O-O-O {[%emt 0:00:50]} c4 {[%emt 0:11:35]} 16. Re1 {[%emt 0:05:55]} Rf5 {[%emt 0:04:10]} 17. Qe3 {[%emt 0:07:45]} Qf8 {[%emt 0:01:11]} 18. Nd2 {[%emt 0:00:08]} e4 {[%emt 0:11:26]} 19. Ndxe4 {[%emt 0:05:04]} Na6 {[%emt 0:01:15]} 20. d6 {[%emt 0:07:54]} h6 {[%emt 0:03:43]} 21. Be7 {[%emt 0:00:43]} Qf7 {[%emt 0:00:16]} 22. Be2 {[%emt 0:01:59]} Nb4 {[%emt 0:03:08]} 23. g4 {[%emt 0:01:05]} Nd3+ {[%emt 0:01:18]} 24. Kb1 {[%emt 0:02:13]} Nd5 {[%emt 0:00:42]} 25. Nxd5 {[%emt 0:00:16]} Rxd5 {[%emt 0:00:10]} 26. Ref1 {[%emt 0:00:28]} Bf5 {[%emt 0:01:20]} 27. gxf5 {[%emt 0:00:38]} Rb5 {[%emt 0:00:14]} 28. f6 {[%emt 0:00:41]} Nxb2 {[%emt 0:00:47]} 29. Ka1 {[%emt 0:01:31]} Bf8 {[%emt 0:00:31]} 30. Nc3 {[%emt 0:00:18]} Rb6 {[%emt 0:00:20]} 31. Bg4 {[%emt 0:00:06]} Kh7 {[%emt 0:00:32]} 32. Be6 {[%emt 0:00:08]} Qe8 {[%emt 0:00:08]} 33. d7 {[%emt 0:00:05]} 1-0